[Event "Turkish-ch Youth U15 2024"]
[Site "Belek Antalya"]
[Date "2024.01.26"]
[Round "8"]
[White "Keskinler, Ela"]
[Black "Sezer, Ipek"]
[Result "1/2-1/2"]
[ECO "D73"]
[WhiteElo "1315"]
[BlackElo "1299"]
[Annotator "NA RC COMBH"]
[PlyCount "87"]
[EventDate "2024.01.21"]
[EventType "swiss"]
[EventCountry "TUR"]
[SourceTitle "playchess.com"]
[Source "ChessBase"]
[SourceQuality "1"]
[TimeControl "5400+30"]

1. Nf3 {[%emt 0:01:00]} Nf6 {[%emt 0:01:00]} 2. g3 {[%emt 0:00:30]} g6 {[%emt 0:00:30]} 3. d4 {[%emt 0:00:30]} Bg7 {[%emt 0:00:00]} 4. Bg2 {[%emt 0:00:00]} O-O {[%emt 0:00:00]} 5. c4 {[%emt 0:00:00]} d5 {[%emt 0:00:30]} 6. Nc3 {[%emt 0:00:30]} c6 {[%emt 0:00:00]} 7. Ne5 {[%emt 0:02:30]} Be6 {[%emt 0:02:00]} 8. Qb3 {[%emt 0:03:30]} Qb6 {[%emt 0:05:30]} 9. c5 {[%emt 0:01:30]} Qxb3 {[%emt 0:00:30]} 10. axb3 {[%emt 0:00:30]} Nbd7 {[%emt 0:00:30]} 11. Nd3 {[%emt 0:08:30]} Bf5 {[%emt 0:02:30]} 12. Kd2 {[%emt 0:10:30]} Ne4+ {[%emt 0:01:30]} 13. Ke3 {[%emt 0:00:30]} Nexc5 {[%emt 0:12:30]} 14. dxc5 {[%emt 0:11:30]} d4+ {[%emt 0:00:30]} 15. Kd2 {[%emt 0:01:30]} dxc3+ {[%emt 0:00:30]} 16. bxc3 {[%emt 0:00:30]} Rfd8 {[%emt 0:00:30]} 17. Ba3 {[%emt 0:01:30]} Ne5 {[%emt 0:00:30]} 18. Bf1 {[%emt 0:00:30]} Ng4 {[%emt 0:02:30]} 19. f3 {[%emt 0:16:30]} Bh6+ {[%emt 0:08:30]} 20. Kc2 {[%emt 0:20:03]} Ne3+ {[%emt 0:07:30]} 21. Kb2 {[%emt 0:01:06]} e5 {[%emt 0:08:30]} 22. Re1 {[%emt 0:04:41]} e4 {[%emt 0:02:30]} 23. fxe4 {[%emt 0:00:46]} Bxe4 {[%emt 0:00:30]} 24. Rg1 {[%emt 0:00:30]} Nd5 {[%emt 0:01:30]} 25. Bg2 {[%emt 0:01:56]} Bxg2 {[%emt 0:00:30]} 26. Rxg2 {[%emt 0:00:30]} Bd2 {[%emt 0:00:00]} 27. e4 {[%emt 0:01:59]} Bxc3+ {[%emt 0:03:00]} 28. Kc2 {[%emt 0:00:09]} Bxe1 {[%emt 0:00:30]} 29. exd5 {[%emt 0:00:04]} Rxd5 {[%emt 0:07:30]} 30. Nxe1 {[%emt 0:00:30]} Rad8 {[%emt 0:00:00]} 31. Nf3 {[%emt 0:00:04]} f6 {[%emt 0:00:00]} 32. Nd2 {[%emt 0:00:30]} b5 {[%emt 0:00:30]} 33. cxb6 {[%emt 0:00:30]} axb6 {[%emt 0:00:30]} 34. Be7 {[%emt 0:01:07]} Re8 {[%emt 0:01:30]} 35. Bxf6 {[%emt 0:00:30]} b5 {[%emt 0:00:30]} 36. Bc3 {[%emt 0:00:09]} c5 {[%emt 0:00:00]} 37. Rf2 {[%emt 0:00:22]} Re3 {[%emt 0:01:00]} 38. g4 {[%emt 0:01:32]} Rdd3 {[%emt 0:03:30]} 39. Bb2 {[%emt 0:00:14]} b4 {[%emt 0:00:30]} 40. Nc4 {[%emt 0:00:30]} Rh3 {[%emt 0:00:30]} 41. Re2 {[%emt 0:00:30]} Rd8 {[%emt 0:00:30]} 42. Be5 {[%emt 0:00:56]} Rdd3 {[%emt 0:03:30]} 43. Bb2 {[%emt 0:00:26]} Rd8 {[%emt 0:00:30]} 44. Be5 {[%emt 0:00:04]} 1/2-1/2

[Event "Turkish-ch Youth U15 2024"]
[Site "Belek Antalya"]
[Date "2024.01.26"]
[Round "8"]
[White "Cemali, Seda"]
[Black "Buyuk, Elvin Esma"]
[Result "1/2-1/2"]
[ECO "B00"]
[WhiteElo "1236"]
[BlackElo "1546"]
[Annotator "NA RC COMBH"]
[PlyCount "171"]
[EventDate "2024.01.21"]
[EventType "swiss"]
[EventCountry "TUR"]
[SourceTitle "playchess.com"]
[Source "ChessBase"]
[SourceQuality "1"]
[TimeControl "5400+30"]

1. Nf3 {[%emt 0:01:00]} e6 {[%emt 0:01:00]} 2. d4 {[%emt 0:00:30]} b6 {[%emt 0:00:30]} 3. e4 {[%emt 0:00:00]} Bb7 {[%emt 0:00:00]} 4. Bd3 {[%emt 0:00:00]} c5 {[%emt 0:06:00]} 5. c3 {[%emt 0:02:30]} cxd4 {[%emt 0:01:30]} 6. cxd4 {[%emt 0:05:30]} Nf6 {[%emt 0:07:30]} 7. Qe2 {[%emt 0:02:30]} d5 {[%emt 0:07:30]} 8. e5 {[%emt 0:00:30]} Nfd7 {[%emt 0:02:30]} 9. Nc3 {[%emt 0:03:30]} a6 {[%emt 0:01:30]} 10. a3 {[%emt 0:01:30]} b5 {[%emt 0:03:30]} 11. Bd2 {[%emt 0:14:30]} Be7 {[%emt 0:05:30]} 12. h4 {[%emt 0:04:30]} Nc6 {[%emt 0:15:30]} 13. b4 {[%emt 0:23:30]} Nb6 {[%emt 0:04:30]} 14. Nd1 {[%emt 0:05:30]} Nc4 {[%emt 0:04:30]} 15. Bc3 {[%emt 0:00:30]} Qb6 {[%emt 0:04:30]} 16. Ne3 {[%emt 0:03:30]} Rc8 {[%emt 0:09:30]} 17. Nxc4 {[%emt 0:03:30]} bxc4 {[%emt 0:00:30]} 18. Bc2 {[%emt 0:01:30]} Na7 {[%emt 0:03:30]} 19. O-O {[%emt 0:05:30]} Nb5 {[%emt 0:00:40]} 20. Ba4 {[%emt 0:01:30]} O-O {[%emt 0:00:26]} 21. Bxb5 {[%emt 0:01:08]} axb5 {[%emt 0:00:24]} 22. g3 {[%emt 0:02:44]} Ra8 {[%emt 0:00:30]} 23. Ne1 {[%emt 0:02:02]} f6 {[%emt 0:04:22]} 24. f4 {[%emt 0:00:30]} f5 {[%emt 0:03:20]} 25. Nc2 {[%emt 0:01:09]} Qc6 {[%emt 0:04:18]} 26. Kg2 {[%emt 0:02:07]} g6 {[%emt 0:02:35]} 27. Rh1 {[%emt 0:00:30]} h6 {[%emt 0:00:30]} 28. Rag1 {[%emt 0:00:30]} Kf7 {[%emt 0:00:30]} 29. Kf2 {[%emt 0:00:30]} Rh8 {[%emt 0:05:42]} 30. Qf3 {[%emt 0:04:41]} Rag8 {[%emt 0:00:30]} 31. Ke1 {[%emt 0:05:02]} Qe8 {[%emt 0:02:07]} 32. Bd2 {[%emt 0:00:28]} Qa8 {[%emt 0:00:28]} 33. Kd1 {[%emt 0:02:29]} h5 {[%emt 0:00:55]} 34. Qc3 {[%emt 0:00:33]} Qa4 {[%emt 0:00:00]} 35. Kc1 {[%emt 0:00:42]} Ra8 {[%emt 0:00:35]} 36. Kb2 {[%emt 0:00:07]} Ra7 {[%emt 0:00:31]} 37. Ra1 {[%emt 0:00:34]} Rha8 {[%emt 0:00:02]} 38. Rhb1 {[%emt 0:00:18]} Bc6 {[%emt 0:00:03]} 39. Kc1 {[%emt 0:00:54]} Qa6 {[%emt 0:00:28]} 40. Kd1 {[%emt 0:00:02]} Qc8 {[%emt 0:00:32]} 41. Ke2 {[%emt 0:00:38]} Ra4 {[%emt 0:00:48]} 42. Bc1 {[%emt 0:00:30]} Qd8 {[%emt 0:00:03]} 43. Qf3 {[%emt 0:00:09]} R8a7 {[%emt 0:00:44]} 44. Bb2 {[%emt 0:01:03]} Qa8 {[%emt 0:00:37]} 45. Qc3 {[%emt 0:00:34]} Be8 {[%emt 0:00:03]} 46. Kd1 {[%emt 0:00:15]} Kg7 {[%emt 0:00:22]} 47. Ke2 {[%emt 0:00:30]} Qd8 {[%emt 0:00:30]} 48. Rh1 {[%emt 0:00:30]} Bf7 {[%emt 0:00:30]} 49. Kd2 {[%emt 0:00:30]} Qb6 {[%emt 0:00:30]} 50. Ke2 {[%emt 0:00:30]} Rc7 {[%emt 0:00:52]} 51. Kd2 {[%emt 0:00:21]} Ra8 {[%emt 0:00:30]} 52. Ke2 {[%emt 0:00:38]} Qa6 {[%emt 0:00:05]} 53. Rhb1 {[%emt 0:00:00]} Kh7 {[%emt 0:00:52]} 54. Ke3 {[%emt 0:00:30]} Qa4 {[%emt 0:00:44]} 55. Bc1 {[%emt 0:00:30]} Rg8 {[%emt 0:00:30]} 56. Ke2 {[%emt 0:00:06]} Rcc8 {[%emt 0:00:09]} 57. Kf2 {[%emt 0:01:31]} Be8 {[%emt 0:00:19]} 58. Ke2 {[%emt 0:00:19]} Bd7 {[%emt 0:00:30]} 59. Kf2 {[%emt 0:00:00]} Rg7 {[%emt 0:00:00]} 60. Ke2 {[%emt 0:00:58]} Rcg8 {[%emt 0:00:00]} 61. Kd1 {[%emt 0:01:00]} Qa8 {[%emt 0:00:13]} 62. Ke2 {[%emt 0:00:44]} Qd8 {[%emt 0:00:29]} 63. Qe1 {[%emt 0:00:37]} Qc7 {[%emt 0:00:33]} 64. Qc3 {[%emt 0:00:30]} Rc8 {[%emt 0:00:00]} 65. Bd2 {[%emt 0:00:06]} Rgg8 {[%emt 0:00:57]} 66. Rh1 {[%emt 0:00:48]} Rh8 {[%emt 0:00:30]} 67. Rhg1 {[%emt 0:00:00]} Qa7 {[%emt 0:00:22]} 68. Rgb1 {[%emt 0:00:01]} Rcf8 {[%emt 0:00:21]} 69. Rh1 {[%emt 0:00:21]} Bd8 {[%emt 0:00:31]} 70. Rhb1 {[%emt 0:00:33]} Bc7 {[%emt 0:01:04]} 71. Be3 {[%emt 0:00:30]} Bc6 {[%emt 0:00:00]} 72. Bd2 {[%emt 0:00:55]} Kg7 {[%emt 0:00:20]} 73. Be3 {[%emt 0:00:30]} Rd8 {[%emt 0:00:30]} 74. Rd1 {[%emt 0:00:30]} Qa4 {[%emt 0:00:30]} 75. Rdb1 {[%emt 0:00:30]} g5 {[%emt 0:00:30]} 76. fxg5 {[%emt 0:00:30]} Kg6 {[%emt 0:00:30]} 77. Bf4 {[%emt 0:00:30]} Rd7 {[%emt 0:00:30]} 78. Ne1 {[%emt 0:00:30]} Rhd8 {[%emt 0:00:30]} 79. Qc2 {[%emt 0:00:30]} Qa7 {[%emt 0:00:30]} 80. Qc3 {[%emt 0:00:30]} Bb6 {[%emt 0:00:30]} 81. Nc2 {[%emt 0:00:30]} Bb7 {[%emt 0:00:30]} 82. Rd1 {[%emt 0:00:30]} Rc8 {[%emt 0:00:30]} 83. Be3 {[%emt 0:00:00]} Rdc7 {[%emt 0:03:32]} 84. Rdb1 {[%emt 0:00:00]} Qa4 {[%emt 0:00:30]} 85. Rd1 {[%emt 0:00:00]} Qb3 {[%emt 0:00:30]} 86. Rdb1 {[%emt 0:00:00]} 1/2-1/2

[Event "Turkish-ch Youth U15 2024"]
[Site "Belek Antalya"]
[Date "2024.01.26"]
[Round "8"]
[White "Senel, Duru"]
[Black "Gorucu, Yagmur"]
[Result "1-0"]
[ECO "A42"]
[WhiteElo "1172"]
[BlackElo "1222"]
[Annotator "NA RC COMBH"]
[PlyCount "56"]
[EventDate "2024.01.21"]
[EventType "swiss"]
[EventCountry "TUR"]
[SourceTitle "playchess.com"]
[Source "ChessBase"]
[SourceQuality "1"]
[TimeControl "5400+30"]

1. d4 {[%emt 0:01:00]} d6 {[%emt 0:01:00]} 2. c4 {[%emt 0:00:00]} g6 {[%emt 0:00:30]} 3. Nc3 {[%emt 0:00:00]} Bg7 {[%emt 0:00:00]} 4. e4 {[%emt 0:02:30]} Nc6 {[%emt 0:01:00]} 5. d5 {[%emt 0:00:30]} Nd4 {[%emt 0:00:00]} 6. Be3 {[%emt 0:01:30]} c5 {[%emt 0:02:00]} 7. Qd2 {[%emt 0:04:30]} a6 {[%emt 0:01:30]} 8. Nge2 {[%emt 0:03:30]} Nxe2 {[%emt 0:00:30]} 9. Bxe2 {[%emt 0:00:00]} Bd7 {[%emt 0:01:30]} 10. O-O {[%emt 0:02:00]} Rb8 {[%emt 0:03:30]} 11. a4 {[%emt 0:01:30]} Nf6 {[%emt 0:07:30]} 12. Bh6 {[%emt 0:03:30]} O-O {[%emt 0:00:00]} 13. Bxg7 {[%emt 0:00:30]} Kxg7 {[%emt 0:00:00]} 14. f4 {[%emt 0:01:30]} Qc7 {[%emt 0:08:30]} 15. Qe3 {[%emt 0:07:30]} Bc8 {[%emt 0:11:30]} 16. Qg3 {[%emt 0:06:30]} Nd7 {[%emt 0:10:30]} 17. Nd1 {[%emt 0:04:30]} e6 {[%emt 0:04:30]} 18. Ne3 {[%emt 0:04:30]} Nf6 {[%emt 0:06:30]} 19. Bd3 {[%emt 0:06:30]} e5 {[%emt 0:04:30]} 20. fxe5 {[%emt 0:02:30]} dxe5 {[%emt 0:02:30]} 21. Qg5 {[%emt 0:02:30]} Qd6 {[%emt 0:02:30]} 22. Rf5 {[%emt 0:03:30]} h6 {[%emt 0:03:30]} 23. Qg3 {[%emt 0:00:30]} Nd7 {[%emt 0:03:30]} 24. Raf1 {[%emt 0:03:30]} g5 {[%emt 0:03:30]} 25. Rxg5+ {[%emt 0:02:30]} Kh7 {[%emt 0:01:30]} 26. Rg7+ {[%emt 0:02:30]} Kh8 {[%emt 0:00:30]} 27. Rfxf7 {[%emt 0:00:30]} Nf6 {[%emt 0:01:30]} 28. Qg6 {[%emt 0:01:30]} Qd8 {[%emt 0:00:30]} 1-0

[Event "Turkish-ch Youth U15 2024"]
[Site "Belek Antalya"]
[Date "2024.01.26"]
[Round "8"]
[White "Iyican, Sude"]
[Black "Seyhan, Pelin"]
[Result "0-1"]
[ECO "D05"]
[WhiteElo "1133"]
[BlackElo "1532"]
[Annotator "NA RC COMBH"]
[PlyCount "70"]
[EventDate "2024.01.21"]
[EventType "swiss"]
[EventCountry "TUR"]
[SourceTitle "playchess.com"]
[Source "ChessBase"]
[SourceQuality "1"]
[TimeControl "5400+30"]

1. d4 {[%emt 0:01:00]} d5 {[%emt 0:01:00]} 2. Nf3 {[%emt 0:00:30]} Nf6 {[%emt 0:00:00]} 3. e3 {[%emt 0:00:00]} e6 {[%emt 0:05:00]} 4. Bd3 {[%emt 0:00:00]} Bd6 {[%emt 0:00:30]} 5. O-O {[%emt 0:00:00]} Nbd7 {[%emt 0:01:30]} 6. Nbd2 {[%emt 0:03:00]} O-O {[%emt 0:00:30]} 7. b3 {[%emt 0:01:30]} e5 {[%emt 0:06:30]} 8. dxe5 {[%emt 0:04:30]} Nxe5 {[%emt 0:00:00]} 9. Be2 {[%emt 0:01:30]} Re8 {[%emt 0:06:00]} 10. Bb2 {[%emt 0:01:30]} c6 {[%emt 0:03:30]} 11. Nxe5 {[%emt 0:01:30]} Bxe5 {[%emt 0:00:30]} 12. Bxe5 {[%emt 0:00:30]} Rxe5 {[%emt 0:00:30]} 13. Nf3 {[%emt 0:02:30]} Rh5 {[%emt 0:08:30]} 14. Qd4 {[%emt 0:13:30]} Qc7 {[%emt 0:06:30]} 15. b4 {[%emt 0:18:30]} Ne4 {[%emt 0:03:30]} 16. Rfd1 {[%emt 0:14:30]} b6 {[%emt 0:10:30]} 17. c4 {[%emt 0:17:47]} c5 {[%emt 0:02:30]} 18. bxc5 {[%emt 0:00:30]} bxc5 {[%emt 0:00:30]} 19. Qb2 {[%emt 0:01:57]} dxc4 {[%emt 0:01:30]} 20. Bxc4 {[%emt 0:07:49]} Bg4 {[%emt 0:00:30]} 21. Be2 {[%emt 0:04:05]} Rb8 {[%emt 0:10:30]} 22. Qc2 {[%emt 0:00:30]} Ng5 {[%emt 0:01:30]} 23. Qd3 {[%emt 0:02:21]} Bxf3 {[%emt 0:07:30]} 24. Bxf3 {[%emt 0:00:17]} Nxf3+ {[%emt 0:00:30]} 25. gxf3 {[%emt 0:00:30]} Qxh2+ {[%emt 0:00:30]} 26. Kf1 {[%emt 0:00:30]} g6 {[%emt 0:03:55]} 27. Rab1 {[%emt 0:01:02]} Rxb1 {[%emt 0:01:32]} 28. Qxb1 {[%emt 0:00:30]} Rd5 {[%emt 0:00:30]} 29. Ke2 {[%emt 0:00:30]} Rxd1 {[%emt 0:00:30]} 30. Qxd1 {[%emt 0:00:30]} Qc7 {[%emt 0:00:30]} 31. Qd5 {[%emt 0:00:30]} h5 {[%emt 0:00:30]} 32. f4 {[%emt 0:00:30]} Qc8 {[%emt 0:00:30]} 33. Qc4 {[%emt 0:00:30]} h4 {[%emt 0:00:30]} 34. f5 {[%emt 0:00:30]} Qxf5 {[%emt 0:00:30]} 35. Qxh4 {[%emt 0:00:30]} Qh5+ {[%emt 0:00:30]} 0-1

[Event "Turkish-ch Youth U15 2024"]
[Site "Belek Antalya"]
[Date "2024.01.27"]
[Round "9"]
[White "Demirtas, Alper"]
[Black "Biyiksiz, Ali Batuhan"]
[Result "1/2-1/2"]
[ECO "A13"]
[WhiteElo "2002"]
[BlackElo "2164"]
[Annotator "NA RC"]
[PlyCount "89"]
[EventDate "2024.01.21"]
[EventType "swiss"]
[EventCountry "TUR"]
[SourceTitle "playchess.com"]
[Source "ChessBase"]
[SourceQuality "1"]
[TimeControl "5400+30"]

1. Nf3 {[%emt 0:01:00]} Nf6 {[%emt 0:01:00]} 2. c4 {[%emt 0:00:30]} e6 {[%emt 0:00:30]} 3. g3 {[%emt 0:00:00]} a6 {[%emt 0:02:30]} 4. Bg2 {[%emt 0:02:00]} b5 {[%emt 0:00:30]} 5. b3 {[%emt 0:04:30]} Bb7 {[%emt 0:01:30]} 6. O-O {[%emt 0:01:30]} c5 {[%emt 0:04:30]} 7. Bb2 {[%emt 0:02:30]} Be7 {[%emt 0:03:30]} 8. d3 {[%emt 0:03:30]} d5 {[%emt 0:05:30]} 9. e3 {[%emt 0:04:30]} Nbd7 {[%emt 0:04:30]} 10. Qe2 {[%emt 0:02:30]} O-O {[%emt 0:05:30]} 11. Nbd2 {[%emt 0:02:30]} dxc4 {[%emt 0:11:30]} 12. dxc4 {[%emt 0:04:30]} Qc7 $11 {[%emt 0:06:30]} 13. e4 {[%emt 0:05:30]} e5 {[%emt 0:00:00]} 14. Rfd1 {[%emt 0:11:30]} Rfe8 {[%emt 0:02:00]} 15. Ne1 {[%emt 0:14:30]} Nb8 {[%emt 0:03:30]} 16. Nd3 {[%emt 0:02:30]} Nc6 {[%emt 0:01:30]} 17. Rac1 {[%emt 0:01:30]} b4 {[%emt 0:06:30]} 18. f4 {[%emt 0:03:30]} Bd6 {[%emt 0:05:30]} 19. Rf1 {[%emt 0:03:30]} Rad8 {[%emt 0:00:30]} 20. Rcd1 {[%emt 0:04:30]} Rd7 {[%emt 0:10:30]} 21. Nf3 {[%emt 0:07:06]} Nd4 {[%emt 0:08:28]} 22. Bxd4 {[%emt 0:05:54]} exd4 {[%emt 0:00:06]} 23. e5 {[%emt 0:00:34]} Bf8 {[%emt 0:00:34]} 24. Nd2 {[%emt 0:04:06]} Bxg2 {[%emt 0:00:57]} 25. Kxg2 {[%emt 0:00:30]} Qb7+ {[%emt 0:00:07]} 26. Kg1 {[%emt 0:00:06]} Rdd8 {[%emt 0:02:04]} 27. Qf3 {[%emt 0:02:36]} Qxf3 {[%emt 0:00:08]} 28. Rxf3 {[%emt 0:00:30]} Ng4 {[%emt 0:00:30]} 29. Nf1 {[%emt 0:00:30]} f6 {[%emt 0:00:30]} 30. Re1 {[%emt 0:00:30]} fxe5 {[%emt 0:00:30]} 31. fxe5 {[%emt 0:00:30]} Nh6 {[%emt 0:00:30]} 32. Nd2 {[%emt 0:00:30]} Nf7 {[%emt 0:00:30]} 33. Rf2 {[%emt 0:00:30]} Re6 {[%emt 0:00:30]} 34. Rfe2 {[%emt 0:00:30]} Rde8 {[%emt 0:06:41]} 35. Nf3 {[%emt 0:03:20]} g5 {[%emt 0:00:05]} 36. g4 {[%emt 0:00:15]} a5 {[%emt 0:01:23]} 37. a4 {[%emt 0:02:14]} h6 {[%emt 0:01:30]} 38. Kf2 {[%emt 0:00:30]} Kg7 {[%emt 0:00:30]} 39. h3 {[%emt 0:00:30]} Nd8 {[%emt 0:00:30]} 40. Nd2 {[%emt 0:01:05]} Nc6 {[%emt 0:02:04]} 41. Nf3 {[%emt 0:00:02]} Be7 {[%emt 0:01:10]} 42. Kg2 {[%emt 0:00:32]} Bf8 {[%emt 0:00:58]} 43. Kf2 {[%emt 0:00:00]} Rc8 {[%emt 0:00:37]} 44. Nd2 {[%emt 0:00:27]} Rce8 {[%emt 0:01:20]} 45. Nf3 {[%emt 0:00:25]} 1/2-1/2

[Event "Turkish-ch Youth U15 2024"]
[Site "Belek Antalya"]
[Date "2024.01.27"]
[Round "9"]
[White "Tezcan, Alper"]
[Black "Karayayla, Doruk"]
[Result "1-0"]
[ECO "C56"]
[WhiteElo "1868"]
[BlackElo "1461"]
[Annotator "NA RC COMBH"]
[PlyCount "61"]
[EventDate "2024.01.21"]
[EventType "swiss"]
[EventCountry "TUR"]
[SourceTitle "playchess.com"]
[Source "ChessBase"]
[SourceQuality "1"]
[TimeControl "5400+30"]

1. e4 e5 {[%emt 0:01:00]} 2. Nf3 {[%emt 0:01:30]} Nc6 {[%emt 0:00:30]} 3. d4 {[%emt 0:00:30]} exd4 {[%emt 0:00:30]} 4. Bc4 {[%emt 0:00:30]} Nf6 {[%emt 0:00:30]} 5. e5 {[%emt 0:00:00]} Ne4 {[%emt 0:00:00]} 6. Qe2 {[%emt 0:00:00]} Nc5 {[%emt 0:00:00]} 7. O-O {[%emt 0:00:30]} Be7 {[%emt 0:00:00]} 8. Rd1 {[%emt 0:01:30]} Ne6 {[%emt 0:00:00]} 9. Bxe6 {[%emt 0:01:30]} fxe6 {[%emt 0:00:30]} 10. Nxd4 {[%emt 0:00:30]} Nxd4 {[%emt 0:00:30]} 11. Rxd4 {[%emt 0:00:30]} O-O {[%emt 0:00:00]} 12. Rg4 {[%emt 0:01:30]} d5 {[%emt 0:15:00]} 13. Nd2 {[%emt 0:18:30]} c5 {[%emt 0:06:30]} 14. Nf3 {[%emt 0:04:30]} Bd7 {[%emt 0:07:30]} 15. Bh6 {[%emt 0:09:30]} Rf7 {[%emt 0:00:30]} 16. Bg5 {[%emt 0:00:30]} Rf5 {[%emt 0:10:30]} 17. Bxe7 {[%emt 0:09:30]} Qxe7 {[%emt 0:00:30]} 18. Nh4 {[%emt 0:00:30]} Rff8 {[%emt 0:00:30]} 19. f4 {[%emt 0:00:30]} Be8 {[%emt 0:01:30]} 20. Qd2 {[%emt 0:18:30]} Bc6 {[%emt 0:19:30]} 21. Rf1 {[%emt 0:00:30]} Rf7 {[%emt 0:01:30]} 22. f5 {[%emt 0:14:54]} exf5 {[%emt 0:00:30]} 23. Nxf5 {[%emt 0:01:05]} Rxf5 {[%emt 0:00:30]} 24. Rxf5 {[%emt 0:00:30]} Bd7 {[%emt 0:00:30]} 25. e6 {[%emt 0:00:30]} Bxe6 {[%emt 0:00:30]} 26. Qe3 {[%emt 0:00:30]} Qd7 {[%emt 0:00:30]} 27. Rxg7+ {[%emt 0:00:30]} Kxg7 {[%emt 0:00:30]} 28. Qe5+ {[%emt 0:00:30]} Kg8 {[%emt 0:00:30]} 29. Rg5+ {[%emt 0:00:30]} Kf8 {[%emt 0:01:30]} 30. Qh8+ {[%emt 0:00:00]} Ke7 {[%emt 0:00:30]} 31. Qxa8 {[%emt 0:00:52]} 1-0

[Event "Turkish-ch Youth U15 2024"]
[Site "Belek Antalya"]
[Date "2024.01.27"]
[Round "9"]
[White "Dirikolu, Deniz"]
[Black "Cicek, Bilal Emre"]
[Result "0-1"]
[ECO "B33"]
[WhiteElo "1786"]
[BlackElo "1649"]
[Annotator "NA RC COMBH"]
[PlyCount "77"]
[EventDate "2024.01.21"]
[EventType "swiss"]
[EventCountry "TUR"]
[SourceTitle "playchess.com"]
[Source "ChessBase"]
[SourceQuality "1"]
[TimeControl "5400+30"]

1. e4 {[%emt 0:01:00]} c5 {[%emt 0:01:00]} 2. Nf3 {[%emt 0:00:30]} e6 {[%emt 0:00:30]} 3. d4 {[%emt 0:00:30]} cxd4 {[%emt 0:00:30]} 4. Nxd4 {[%emt 0:00:30]} Nf6 {[%emt 0:00:00]} 5. Nc3 {[%emt 0:00:00]} Nc6 {[%emt 0:00:00]} 6. Bf4 {[%emt 0:00:00]} d6 {[%emt 0:00:00]} 7. Ndb5 {[%emt 0:00:00]} e5 {[%emt 0:00:00]} 8. Bg5 {[%emt 0:00:00]} a6 {[%emt 0:00:00]} 9. Bxf6 {[%emt 0:00:00]} gxf6 {[%emt 0:00:00]} 10. Na3 {[%emt 0:00:00]} b5 {[%emt 0:00:30]} 11. Nd5 {[%emt 0:00:00]} Bg7 {[%emt 0:00:00]} 12. Bd3 {[%emt 0:00:00]} Ne7 {[%emt 0:00:00]} 13. Nxe7 {[%emt 0:04:30]} Qxe7 {[%emt 0:06:30]} 14. c4 {[%emt 0:00:00]} O-O {[%emt 0:14:30]} 15. cxb5 {[%emt 0:03:00]} f5 {[%emt 0:00:30]} 16. O-O {[%emt 0:01:30]} d5 {[%emt 0:02:30]} 17. f3 {[%emt 0:09:30]} Rb8 {[%emt 0:14:30]} 18. Qe2 {[%emt 0:06:30]} fxe4 {[%emt 0:17:30]} 19. fxe4 {[%emt 0:00:30]} dxe4 {[%emt 0:00:00]} 20. Bc4 {[%emt 0:07:30]} axb5 {[%emt 0:05:00]} 21. Nxb5 {[%emt 0:00:30]} Kh8 {[%emt 0:01:30]} 22. Rad1 {[%emt 0:04:30]} Be6 {[%emt 0:10:30]} 23. Nd6 {[%emt 0:04:30]} Rb6 {[%emt 0:00:30]} 24. Nxe4 {[%emt 0:30:30]} Bxc4 {[%emt 0:01:30]} 25. Qxc4 {[%emt 0:00:30]} Rb4 {[%emt 0:00:30]} 26. Qc2 {[%emt 0:09:54]} h6 {[%emt 0:07:21]} 27. Kh1 {[%emt 0:06:11]} Rd4 {[%emt 0:08:02]} 28. h3 {[%emt 0:02:56]} Qe6 {[%emt 0:00:30]} 29. b3 {[%emt 0:00:30]} f5 {[%emt 0:00:30]} 30. Ng3 {[%emt 0:00:30]} e4 {[%emt 0:00:30]} 31. Ne2 {[%emt 0:00:30]} Rxd1 {[%emt 0:00:30]} 32. Qxd1 {[%emt 0:07:03]} Be5 {[%emt 0:05:28]} 33. Qd2 {[%emt 0:00:19]} Kh7 {[%emt 0:03:56]} 34. Qe3 {[%emt 0:00:30]} Bb8 {[%emt 0:00:30]} 35. g3 {[%emt 0:00:30]} Rd8 {[%emt 0:00:30]} 36. Nd4 {[%emt 0:02:06]} Rxd4 {[%emt 0:01:32]} 37. Qxd4 {[%emt 0:00:30]} Bxg3 {[%emt 0:00:00]} 38. Qd1 {[%emt 0:01:25]} f4 {[%emt 0:00:41]} 39. Qe2 {[%emt 0:00:25]} 0-1

[Event "Turkish-ch Youth U15 2024"]
[Site "Belek Antalya"]
[Date "2024.01.27"]
[Round "9"]
[White "Bursali, Ela"]
[Black "Keskinler, Ela"]
[Result "1/2-1/2"]
[ECO "A08"]
[WhiteElo "1556"]
[BlackElo "1315"]
[Annotator "NA RC COMBH"]
[PlyCount "61"]
[EventDate "2024.01.21"]
[EventType "swiss"]
[EventCountry "TUR"]
[SourceTitle "playchess.com"]
[Source "ChessBase"]
[SourceQuality "1"]
[TimeControl "5400+30"]

1. e4 {[%emt 0:01:00]} e6 {[%emt 0:01:00]} 2. d3 {[%emt 0:00:30]} d5 {[%emt 0:00:00]} 3. Nd2 {[%emt 0:00:00]} c5 {[%emt 0:00:00]} 4. Ngf3 {[%emt 0:00:00]} Nc6 {[%emt 0:00:30]} 5. g3 {[%emt 0:00:30]} Nf6 {[%emt 0:00:30]} 6. Bg2 {[%emt 0:00:00]} g6 {[%emt 0:00:00]} 7. O-O {[%emt 0:00:00]} Bg7 {[%emt 0:00:00]} 8. Re1 {[%emt 0:00:30]} O-O {[%emt 0:00:30]} 9. Qe2 {[%emt 0:05:30]} a5 {[%emt 0:01:30]} 10. Nf1 {[%emt 0:03:30]} b6 {[%emt 0:02:30]} 11. e5 {[%emt 0:01:30]} Nd7 {[%emt 0:00:30]} 12. Bf4 {[%emt 0:01:30]} Qc7 {[%emt 0:02:30]} 13. h4 {[%emt 0:00:30]} Ba6 {[%emt 0:02:30]} 14. c3 {[%emt 0:04:30]} h6 {[%emt 0:01:30]} 15. N1h2 {[%emt 0:01:30]} Rae8 {[%emt 0:04:30]} 16. Ng4 {[%emt 0:03:30]} Kh7 {[%emt 0:07:30]} 17. Qe3 {[%emt 0:09:30]} Rh8 {[%emt 0:09:30]} 18. Nxh6 {[%emt 0:07:30]} Bxh6 {[%emt 0:00:30]} 19. Bxh6 {[%emt 0:01:30]} Ncxe5 {[%emt 0:01:30]} 20. Nxe5 {[%emt 0:01:30]} Qxe5 {[%emt 0:01:30]} 21. Qxe5 {[%emt 0:01:30]} Nxe5 {[%emt 0:00:30]} 22. Rxe5 {[%emt 0:00:30]} Kxh6 {[%emt 0:00:00]} 23. Rae1 {[%emt 0:00:30]} Bxd3 {[%emt 0:01:00]} 24. Bxd5 {[%emt 0:02:30]} Rd8 {[%emt 0:00:30]} 25. Bf3 {[%emt 0:04:30]} Bc4 {[%emt 0:02:30]} 26. b3 {[%emt 0:12:30]} Ba6 {[%emt 0:01:30]} 27. c4 {[%emt 0:02:30]} a4 {[%emt 0:01:30]} 28. R1e2 {[%emt 0:12:30]} Rd1+ {[%emt 0:03:30]} 29. Kg2 {[%emt 0:02:30]} Rhd8 {[%emt 0:02:30]} 30. Rc2 {[%emt 0:02:20]} R1d3 {[%emt 0:00:30]} 31. Rb2 {[%emt 0:06:45]} 1/2-1/2